bitfinex-derivatives/quotes_ETHF0:USTF0_20260119
["timestamp","ask_amount","ask_price","bid_price","bid_amount"]
[1768844463498,1.20813223,3223.5,3222.3,1.42922362]
[1768844463689,0.87036569,3223.4,3222.3,1.42922362]
[1768844463891,1.28795349,3223.8,3222.3,1.42922362]
[1768844463892,0.87036569,3223.3,3222.3,1.42922362]
[1768844464204,1.28508146,3223.6,3222.3,1.42922362]
[1768844464505,0.87012486,3223.5,3222.3,1.42922362]
[1768844464702,0.87012486,3223.4,3222.3,1.42922362]
[1768844464904,0.87012486,3223.3,3222.3,1.42922362]
[1768844465102,1.28508146,3223.6,3222.3,1.42922362]
[1768844465302,0.87029004,3223.5,3222.3,1.42922362]
[1768844465601,0.87029004,3223.4,3222.3,1.42922362]
[1768844465803,1.28508146,3223.6,3222.3,1.42922362]
[1768844466101,0.86970428,3223.5,3222.3,1.42922362]
[1768844466306,1.28508146,3223.6,3222.3,1.42922362]
[1768844466307,0.86970428,3223.4,3222.3,1.42922362]
[1768844466496,1.28508146,3223.6,3222.3,1.42922362]
[1768844466696,1.20716834,3223.5,3222.3,1.42922362]
[1768844466895,0.86962811,3223.4,3222.3,1.42922362]
[1768844467105,1.28508146,3223.6,3222.3,1.42922362]
[1768844467395,0.86958415,3223.5,3222.3,1.42922362]
[1768844467599,0.86958415,3223.4,3222.3,1.42922362]
[1768844467800,1.28508146,3223.6,3222.3,1.42922362]
[1768844467997,0.00287203,3223.8,3222.7,1.28508146]
[1768844468202,0.00287203,3223.8,3222.9,1.28508146]
[1768844468203,1.20649971,3223.7,3222.9,1.28508146]
[1768844468403,0.86915899,3223.6,3222.7,1.28508146]
[1768844468704,0.00287203,3223.8,3222.7,1.28508146]
[1768844468902,1.20630115,3223.7,3222.7,1.28508146]
[1768844469097,0.86902869,3223.6,3222.7,1.28508146]
[1768844469300,0.00287203,3223.8,3222.5,1.42922362]
[1768844469498,2.15395956,3223.7,3222.5,1.42922362]
[1768844469703,0.8688781,3223.6,3222.5,1.42922362]
[1768844469900,1.28508146,3223.7,3222.5,1.42922362]
[1768844470102,0.86886433,3223.6,3222.5,1.42922362]
[1768844470300,1.28508146,3223.7,3222.5,1.42922362]
[1768844470500,0.86875129,3223.6,3222.5,1.42922362]
[1768844470803,1.28508146,3223.7,3222.5,1.42922362]
[1768844472601,1.28508146,3223.7,3222.6,0.14414216]
[1768844475605,0.00287203,3223.8,3222.6,0.14414216]
[1768844475806,0.86815386,3223.7,3222.6,0.14414216]
[1768844476003,1.28795349,3223.8,3222.6,0.14414216]
[1768844476198,0.86815551,3223.7,3222.6,0.14414216]
[1768844476397,1.28795349,3223.8,3222.6,0.14414216]
[1768844476597,0.86808357,3223.7,3222.6,0.14414216]
[1768844476806,1.28795349,3223.8,3222.6,0.14414216]
[1768844477002,0.86808056,3223.7,3222.6,0.14414216]
[1768844477203,1.28795349,3223.8,3222.6,0.14414216]
[1768844477404,0.86809762,3223.7,3222.6,0.14414216]
[1768844477601,1.28795349,3223.8,3222.6,0.14414216]
[1768844477806,0.86830451,3223.7,3222.6,0.14414216]
[1768844478005,1.28795349,3223.8,3222.6,0.14414216]
[1768844478202,0.86848385,3223.7,3222.6,0.14414216]
[1768844478506,1.28795349,3223.8,3222.6,0.14414216]
[1768844478705,0.86854464,3223.7,3222.6,0.14414216]
[1768844479004,1.28795349,3223.8,3222.6,0.14414216]
[1768844479194,0.86852262,3223.7,3222.6,0.14414216]
[1768844479396,1.28795349,3223.8,3222.6,0.14414216]
[1768844479591,0.86850865,3223.7,3222.6,0.14414216]
[1768844479793,0.00287203,3223.8,3222.8,0.14414216]
[1768844488010,0.00287203,3223.8,3223.2,0.13947615]
[1768844489810,0.15522,3223.0,3221.4,0.13947615]
[1768844490013,1.28508146,3222.8,3221.4,0.13947615]
[1768844490218,0.86885519,3222.7,3221.4,0.13947615]
[1768844490421,2.15393665,3222.7,3221.6,0.13947615]
[1768844490613,1.28508146,3223.0,3221.6,0.13947615]
[1768844490813,0.90072808,3222.9,3221.8,0.13947615]
[1768844491113,0.90072808,3222.8,3221.8,0.13947615]
[1768844491307,0.90072808,3222.7,3221.9,0.13947615]
[1768844491507,1.28508146,3223.0,3221.9,0.13947615]
[1768844491810,0.91232209,3222.9,3221.9,0.13947615]
[1768844492016,0.91232209,3222.8,3221.9,0.13947615]
[1768844492206,0.91232209,3222.7,3221.9,0.13947615]
[1768844492403,0.91232209,3222.7,3222.0,3.82187586]
[1768844492609,0.15527,3221.8,3219.9,0.13947615]
[1768844492819,1.28508146,3220.6,3219.9,0.13947615]
[1768844493021,1.28508146,3220.9,3219.9,0.13947615]
[1768844493414,1.28508146,3220.9,3220.1,0.0032145]
[1768844493719,1.28766444,3220.9,3220.1,0.14499392]
[1768844493914,1.28766444,3220.9,3220.2,0.0032145]
[1768844494117,0.00258298,3220.9,3220.2,0.0032145]
[1768844494316,0.00258298,3220.9,3220.3,0.0032145]
[1768844494510,0.00258298,3220.9,3220.2,0.0032145]
[1768844495022,0.00258298,3220.9,3220.5,0.13947615]
[1768844495220,0.15527,3221.8,3220.5,0.13947615]
[1768844495417,1.28508146,3221.5,3220.5,0.13947615]
[1768844495613,0.15527,3221.8,3220.5,0.13947615]
[1768844495817,1.28508146,3221.3,3220.5,0.13947615]
[1768844496214,1.28757742,3221.3,3220.5,0.13947615]
[1768844497321,0.00249596,3221.3,3220.5,0.13947615]
[1768844497521,1.28508146,3221.2,3220.5,0.13947615]
[1768844497929,1.28508146,3221.2,3220.5,0.14269065]
[1768844498330,0.00249596,3221.3,3220.5,0.14269065]
[1768844498519,1.28757742,3221.3,3220.5,0.13947615]
[1768844501333,1.28757742,3221.3,3220.5,0.14269065]
[1768844501932,1.28757742,3221.3,3220.5,0.13947615]
[1768844502229,1.28757742,3221.3,3220.5,0.14269065]
[1768844503540,1.28757742,3221.3,3220.5,0.0032145]
[1768844506340,1.28508146,3221.1,3220.5,0.0032145]
[1768844506541,1.28508146,3220.7,3220.1,0.14539598]
[1768844507836,1.28508146,3220.9,3220.1,0.14539598]
[1768844508141,0.00249596,3221.3,3220.1,0.14539598]
[1768844508328,1.28508146,3221.0,3220.1,0.14539598]
[1768844509941,1.28508146,3220.9,3220.1,0.14539598]
[1768844510829,1.28944621,3221.3,3220.1,0.14539598]
[1768844511232,1.28944621,3221.3,3220.1,0.00230327]
[1768844511428,1.28695025,3220.9,3219.7,0.14309271]
[1768844512442,1.44474621,3221.3,3219.7,0.14703273]
[1768844515633,0.15779596,3221.3,3219.7,0.14703273]
[1768844516344,0.91459729,3221.2,3219.7,0.14703273]
[1768844516544,0.15779596,3221.3,3219.7,0.14703273]
[1768844516745,0.91469991,3221.2,3219.7,0.14703273]
[1768844516946,0.15779596,3221.3,3219.7,0.14703273]
[1768844517248,0.91469853,3221.2,3219.7,0.14703273]
[1768844517446,0.91469853,3221.1,3219.7,0.14703273]
[1768844517642,0.15779596,3221.3,3219.7,0.14703273]
[1768844517842,0.91570033,3221.2,3219.7,0.14703273]
[1768844518042,0.91570033,3221.1,3219.7,0.14703273]
[1768844518242,0.15779596,3221.3,3219.7,0.14703273]
[1768844518544,0.91695161,3221.2,3219.7,0.14703273]
[1768844518744,0.91695161,3221.1,3219.7,0.14703273]
[1768844518947,0.91695161,3221.0,3219.7,0.14703273]
[1768844519136,0.15779596,3221.3,3219.7,0.14703273]
[1768844519449,1.82964686,3221.3,3219.7,0.14703273]
[1768844519648,0.91689146,3221.2,3219.7,0.14703273]
[1768844520559,2.58874236,3221.2,3219.7,0.14703273]
[1768844520739,0.91689146,3221.1,3219.7,0.14703273]
[1768844521353,2.58874236,3221.1,3219.7,0.14703273]
[1768844521552,0.91689146,3221.0,3219.7,0.14703273]
[1768844521754,0.91689146,3220.9,3219.7,0.14703273]
[1768844521949,0.91689146,3220.8,3219.7,0.14703273]
[1768844522150,0.91689146,3220.7,3219.7,0.14703273]
[1768844522354,0.91689146,3220.6,3219.7,0.14703273]
[1768844522556,0.91689146,3220.5,3219.7,0.14703273]
[1768844522754,0.91689146,3220.4,3219.7,0.14703273]
[1768844523057,1.6718509,3220.9,3219.7,0.14703273]
[1768844523357,0.92183566,3220.8,3219.7,0.14703273]
[1768844523656,0.92183566,3220.7,3219.7,0.14703273]
[1768844523856,0.92183566,3220.6,3219.7,0.00394002]
[1768844524057,0.92183566,3220.5,3219.7,0.00394002]
[1768844524245,0.92183566,3220.4,3219.7,0.00394002]
[1768844524450,2.95880115,3220.7,3219.3,0.14330737]
[1768844524451,0.92183566,3220.3,3219.3,0.14330737]
[1768844524652,0.92183566,3220.2,3219.3,0.14330737]
[1768844524961,2.95880115,3220.7,3219.3,0.14330737]
[1768844525150,0.92179552,3220.6,3219.3,0.14330737]
[1768844525351,0.92179552,3220.5,3219.3,0.14330737]
[1768844525552,0.92179552,3220.4,3219.3,0.14669851]
[1768844525747,0.92179552,3220.3,3219.3,0.14669851]
[1768844525957,0.92179552,3220.2,3219.3,0.14669851]
[1768844526158,2.95880115,3220.7,3219.3,0.14669851]
[1768844526360,0.92184624,3220.6,3219.3,0.14669851]
[1768844526561,0.92184624,3220.5,3219.3,0.14669851]
[1768844526859,0.92184624,3220.4,3219.3,0.14669851]
[1768844527059,0.92184624,3220.3,3219.3,0.14669851]
[1768844527361,0.92184624,3220.2,3219.3,0.14669851]
[1768844527660,2.95880115,3220.7,3219.3,0.14669851]
[1768844527851,0.92177814,3220.6,3219.3,0.14669851]
[1768844528052,0.92177814,3220.5,3219.3,0.14669851]
[1768844528362,0.92177814,3220.4,3219.3,0.14669851]
[1768844528561,0.92177814,3220.3,3219.3,0.14669851]
[1768844528756,0.92177814,3220.2,3219.3,0.14669851]
[1768844528957,1.6718509,3220.8,3219.3,0.14669851]
[1768844529158,0.92129792,3220.7,3219.3,0.14669851]
[1768844529360,0.92129792,3220.6,3219.3,0.14669851]
[1768844529559,0.92129792,3220.5,3219.3,0.14669851]
[1768844529753,0.92129792,3220.4,3219.3,0.14669851]
[1768844529950,0.92129792,3220.3,3219.3,0.14669851]
[1768844530157,0.92129792,3220.2,3219.3,0.14669851]
[1768844530449,1.6718509,3220.8,3219.3,0.14669851]
[1768844530655,0.92108682,3220.7,3219.3,0.14669851]
[1768844530855,0.92108682,3220.6,3219.3,0.14669851]
[1768844531061,0.92108682,3220.5,3219.3,0.14669851]
[1768844531362,0.92108682,3220.4,3219.3,0.14669851]
[1768844531662,0.92108682,3220.3,3219.3,0.14669851]
[1768844531962,0.92108682,3220.2,3219.3,0.14669851]
[1768844532165,1.6718509,3220.8,3219.3,0.14669851]
[1768844532365,0.92098651,3220.7,3219.3,0.14669851]
[1768844532561,0.92098651,3220.6,3219.3,0.14669851]
[1768844532764,0.92098651,3220.5,3219.3,0.14669851]
[1768844532964,0.92098651,3220.4,3219.3,0.14669851]
[1768844533160,0.92098651,3220.3,3219.3,0.14669851]
[1768844533463,0.92098651,3220.2,3219.3,0.14669851]
[1768844533661,1.6718509,3220.8,3219.3,0.14669851]
[1768844533958,0.9208653,3220.7,3219.3,0.14669851]
[1768844534154,0.9208653,3220.6,3219.3,0.14669851]
[1768844534359,0.9208653,3220.5,3219.3,0.14669851]
[1768844534561,0.9208653,3220.4,3219.3,0.14669851]
[1768844534761,0.9208653,3220.3,3219.3,0.14669851]
[1768844534961,0.9208653,3220.2,3219.3,0.14669851]
[1768844535162,1.6718509,3220.8,3219.3,0.14669851]
[1768844535358,0.92087314,3220.7,3219.3,0.14669851]
[1768844535554,0.92087314,3220.6,3219.4,0.14330737]
[1768844535757,0.92087314,3220.5,3219.4,0.14330737]
[1768844535957,1.6718509,3220.8,3219.4,0.14330737]
[1768844535958,0.92087314,3220.4,3219.5,0.14330737]
[1768844536160,0.92087314,3220.3,3219.5,0.14330737]
[1768844536360,0.92087314,3220.2,3219.5,0.14330737]
[1768844536561,1.6718509,3220.8,3219.5,0.14330737]
[1768844536861,0.92093112,3220.7,3219.5,0.14330737]
[1768844537054,0.92093112,3220.6,3219.5,0.14330737]
[1768844537254,0.92093112,3220.5,3219.5,0.14330737]
[1768844537453,0.92093112,3220.4,3219.5,0.14330737]
[1768844537659,0.92093112,3220.3,3219.5,0.14330737]
[1768844537858,0.92093112,3220.2,3219.5,0.14330737]
[1768844538056,1.6718509,3220.8,3219.5,0.14330737]
[1768844538260,0.92041109,3220.7,3219.5,0.14330737]
[1768844538466,0.92041109,3220.6,3219.5,0.14330737]
[1768844538667,0.92041109,3220.5,3219.5,0.14330737]
[1768844538860,0.92041109,3220.4,3219.5,0.14330737]
[1768844539065,0.92041109,3220.3,3219.5,0.14330737]
[1768844539264,0.92041109,3220.2,3219.5,0.14330737]
[1768844539464,1.6718509,3220.8,3219.5,0.14330737]
[1768844539666,0.92052168,3220.7,3219.5,0.14330737]
[1768844539867,0.92052168,3220.6,3219.5,0.14330737]
[1768844540165,0.92052168,3220.5,3219.5,0.14330737]
[1768844540366,0.92052168,3220.4,3219.5,0.14330737]
[1768844540671,0.92052168,3220.3,3219.5,0.14330737]
[1768844540972,1.6718509,3220.8,3219.5,0.14330737]
[1768844541172,1.25779996,3220.7,3219.5,0.14330737]
[1768844541371,0.92050194,3220.6,3219.5,0.14330737]
[1768844541570,0.92050194,3220.5,3219.5,0.14330737]
[1768844541774,0.92050194,3220.4,3219.5,0.14330737]
[1768844542073,0.92050194,3220.3,3219.5,0.14330737]
[1768844542266,1.6718509,3220.8,3219.5,0.14330737]
[1768844542465,1.25795214,3220.7,3219.5,0.14330737]
[1768844542664,0.92061972,3220.6,3219.5,0.14330737]
[1768844542865,0.92061972,3220.5,3219.5,0.14330737]
[1768844543066,0.92061972,3220.4,3219.5,0.14330737]
[1768844543270,1.6718509,3220.8,3219.5,0.14330737]
[1768844543271,0.92061972,3220.3,3219.5,0.14330737]
[1768844543471,1.6718509,3220.8,3219.5,0.14330737]
[1768844543676,1.25799279,3220.7,3219.5,0.14330737]
[1768844543870,0.92064943,3220.6,3219.5,0.14330737]
[1768844544074,0.92064943,3220.5,3219.5,0.14330737]
[1768844544274,0.92064943,3220.4,3219.5,0.14330737]
[1768844544475,0.92064943,3220.3,3219.5,0.14330737]
[1768844544676,1.6718509,3220.8,3219.5,0.14330737]
[1768844544876,1.25804585,3220.7,3219.5,0.14330737]
[1768844545082,0.92068822,3220.6,3219.5,0.14330737]
[1768844545277,0.92068822,3220.5,3219.5,0.14330737]
[1768844545478,0.92068822,3220.4,3219.5,0.14330737]
[1768844545678,0.92068822,3220.3,3219.5,0.14330737]
[1768844545876,1.8271709,3220.9,3219.5,0.14330737]
[1768844546078,1.25810481,3220.8,3219.5,0.14330737]
[1768844546282,1.25810481,3220.7,3219.5,0.14330737]
[1768844546486,0.92073137,3220.6,3219.5,0.14330737]
[1768844546672,0.92073137,3220.5,3219.5,0.14330737]
[1768844546872,0.92073137,3220.4,3219.5,0.14330737]
[1768844547074,0.92073137,3220.3,3219.5,0.14330737]
[1768844547276,1.8271709,3220.9,3219.5,0.14330737]
[1768844547474,1.2582032,3220.8,3219.5,0.14330737]
[1768844547674,1.2582032,3220.7,3219.5,0.14330737]
[1768844547876,0.9207885,3220.6,3219.5,0.14330737]
[1768844548080,0.9207885,3220.5,3219.5,0.14330737]
[1768844548277,0.9207885,3220.4,3219.5,0.14330737]
[1768844548477,1.8271709,3220.9,3219.5,0.14330737]
[1768844548677,1.258374,3220.8,3219.5,0.14330737]
[1768844548976,1.258374,3220.7,3219.5,0.14330737]
[1768844549176,0.92092853,3220.6,3219.5,0.14330737]
[1768844549369,1.8271709,3220.9,3219.5,0.14330737]
[1768844549370,0.92092853,3220.5,3219.5,0.14330737]
[1768844549582,0.92092853,3220.4,3219.5,0.14330737]
[1768844549783,1.8271709,3220.9,3219.5,0.14330737]
[1768844549983,1.25851392,3220.8,3219.5,0.14330737]
[1768844550178,1.25851392,3220.7,3219.5,0.14330737]
[1768844550380,0.92103094,3220.6,3219.5,0.14330737]
[1768844550686,0.92103094,3220.5,3219.5,0.14330737]
[1768844550886,0.92103094,3220.4,3219.5,0.14330737]
[1768844551186,1.8271709,3220.9,3219.5,0.14330737]
[1768844551379,1.25854114,3220.8,3219.5,0.14330737]
[1768844551583,1.25854114,3220.7,3219.5,0.14330737]
[1768844551882,0.92105081,3220.6,3219.5,0.14330737]
[1768844552086,0.92105081,3220.5,3219.5,0.14330737]
[1768844552379,0.92105081,3220.4,3219.5,0.14330737]
[1768844552592,0.92105081,3220.3,3219.5,0.14330737]
[1768844552883,1.8271709,3220.9,3219.5,0.14330737]
[1768844553086,1.25908279,3220.8,3219.5,0.14330737]
[1768844553283,1.25908279,3220.7,3219.5,0.14330737]
[1768844553486,1.25908279,3220.6,3219.5,0.14330737]
[1768844553688,0.92144672,3220.5,3219.5,0.14330737]
[1768844553896,0.92144672,3220.4,3219.5,0.14330737]
[1768844554187,0.92144672,3220.3,3219.5,0.14330737]
[1768844554388,1.8271709,3220.9,3219.5,0.14330737]
[1768844554589,1.25949084,3220.8,3219.5,0.14330737]
[1768844554788,1.25949121,3220.7,3219.5,0.14330737]
[1768844554989,1.25949121,3220.6,3219.5,0.14330737]
[1768844555189,0.92174435,3220.5,3219.5,0.14330737]
[1768844555390,0.92174435,3220.4,3219.5,0.14330737]
[1768844555590,0.92174435,3220.3,3219.5,0.14330737]
[1768844555792,1.8271709,3220.9,3219.5,0.14330737]
[1768844556093,1.25949182,3220.8,3219.5,0.14330737]
[1768844556290,1.25949182,3220.7,3219.5,0.14330737]
[1768844556591,1.25949182,3220.6,3219.5,0.14330737]
[1768844556791,0.92174523,3220.5,3219.5,0.14330737]
[1768844556982,0.92174523,3220.4,3219.5,0.14330737]
[1768844557180,0.92174523,3220.3,3219.5,0.14330737]
[1768844557392,1.28695025,3220.6,3219.3,0.00339114]
[1768844557586,1.28695025,3220.2,3219.3,0.00339114]
[1768844557794,0.92161926,3220.1,3219.1,0.13061092]
[1768844557994,1.28695025,3220.2,3219.1,0.13061092]
[1768844558185,0.92174519,3220.1,3219.1,0.13061092]
[1768844558493,0.92174519,3220.0,3219.1,0.13061092]
[1768844558686,1.28695025,3220.2,3219.1,0.13295061]
[1768844558886,0.92134775,3220.1,3219.1,0.13295061]
[1768844559088,0.92134775,3220.0,3219.1,0.13295061]
[1768844559285,1.28695025,3220.2,3219.1,0.13295061]
[1768844559485,0.9212559,3220.1,3219.1,0.13295061]
[1768844559694,0.9212559,3220.0,3219.1,0.13295061]
[1768844559991,1.28695025,3220.2,3219.1,0.13295061]
[1768844560192,0.92127333,3220.1,3219.1,0.13295061]
[1768844560387,0.92127333,3220.0,3219.1,0.13295061]
[1768844560586,1.28695025,3220.2,3219.1,0.13295061]
[1768844560787,0.92110505,3220.1,3219.1,0.13295061]
[1768844560987,0.92110505,3220.0,3219.1,0.13295061]
[1768844561191,1.28695025,3220.2,3219.1,0.13295061]
[1768844561386,0.92082197,3220.1,3219.1,0.00233969]
[1768844561591,0.92082197,3220.0,3219.1,0.00233969]
[1768844561795,0.92082197,3219.9,3219.1,0.00233969]
[1768844561994,1.28695025,3220.2,3219.1,0.00233969]
[1768844562194,0.92080472,3220.1,3219.1,0.00233969]
[1768844562395,0.92080472,3220.0,3219.1,0.00233969]
[1768844562594,0.92080472,3219.9,3219.1,0.00233969]
[1768844562794,1.28695025,3220.2,3219.1,0.00233969]
[1768844563097,0.92058904,3220.1,3219.1,0.00233969]
[1768844563294,0.92058904,3220.0,3219.1,0.00233969]
[1768844563494,1.28695025,3220.2,3219.1,0.00233969]
[1768844563696,0.92053205,3220.1,3219.1,0.00233969]
[1768844563892,0.92053205,3220.0,3219.1,0.00233969]
[1768844564093,0.92053205,3219.9,3219.1,0.00233969]
[1768844564296,1.28695025,3220.2,3219.1,0.00233969]
[1768844564493,0.92062891,3220.1,3219.1,0.00233969]
[1768844564694,1.28695025,3220.2,3219.1,0.00233969]
[1768844564695,0.92062891,3220.0,3219.1,0.00233969]
[1768844564892,0.92062891,3219.9,3219.1,0.00233969]
[1768844565092,1.28695025,3220.2,3219.1,0.00233969]
[1768844565396,1.28695025,3219.8,3218.1,0.15545]
[1768844565597,0.92064808,3219.7,3218.1,0.15545]
[1768844565798,0.92064808,3219.6,3218.1,0.15545]
[1768844565997,0.13963751,3219.9,3218.1,0.15545]
[1768844566198,0.92042761,3219.8,3218.1,0.15545]
[1768844566500,0.92042761,3219.7,3218.1,0.00247669]
[1768844566702,1.89436,3220.0,3218.1,0.00247669]
[1768844566904,0.92012848,3219.9,3218.1,0.00247669]
[1768844567100,0.92012848,3219.8,3218.1,0.00247669]
[1768844567402,0.92012848,3219.7,3218.2,0.13848318]
[1768844567609,1.89436,3220.0,3218.4,0.15544]
[1768844567803,0.92001753,3219.9,3218.4,0.15544]
[1768844568004,0.92001753,3219.8,3218.4,0.29392318]
[1768844568196,0.92001753,3219.7,3218.5,0.13848318]
[1768844568396,1.89436,3220.0,3218.5,0.13848318]
[1768844568696,0.92366705,3219.9,3218.5,0.13848318]
[1768844568895,0.92366705,3219.8,3218.5,0.13848318]
[1768844569100,0.92366705,3219.7,3218.5,0.13848318]
[1768844569398,3.18131025,3220.0,3218.5,0.13848318]
[1768844569599,0.92355582,3219.9,3218.5,0.13848318]
[1768844569799,3.32129473,3220.0,3218.5,0.13848318]
[1768844569800,0.92355582,3219.8,3218.5,0.13848318]
[1768844570004,0.92355582,3219.7,3218.5,0.13848318]
[1768844570305,3.32129473,3220.0,3218.5,0.13848318]
[1768844570501,0.92347216,3219.9,3218.5,0.13848318]
[1768844570704,0.92347216,3219.8,3218.5,0.13848318]
[1768844571006,0.92347216,3219.7,3218.5,0.13848318]
[1768844571208,3.32129473,3220.0,3218.5,0.13848318]
[1768844571413,0.92331218,3219.9,3218.5,0.13848318]
[1768844571607,0.92331218,3219.8,3218.5,0.13848318]
[1768844571808,3.32129473,3220.0,3218.5,0.13848318]
[1768844572013,0.92331286,3219.9,3218.5,0.13848318]
[1768844572207,0.92331286,3219.8,3218.5,0.13848318]
[1768844572504,3.32129473,3220.0,3218.5,0.13848318]
[1768844572806,0.92323159,3219.9,3218.5,0.13848318]
[1768844573009,2.21099953,3219.8,3218.5,1.42625112]
[1768844573209,1.28776794,3219.8,3218.5,1.42625112]
[1768844573514,1.28776794,3220.0,3218.7,1.42695653]
[1768844573700,0.92318259,3219.9,3218.7,1.42695653]
[1768844573901,0.92318259,3219.8,3218.7,1.42695653]
[1768844574103,1.28776794,3220.0,3218.7,1.42695653]
[1768844574410,0.92315859,3219.9,3218.7,1.42695653]
[1768844574708,1.28776794,3220.0,3218.7,1.42695653]
[1768844574709,0.92315859,3219.8,3218.7,1.42695653]
[1768844574910,1.28776794,3220.0,3218.7,1.42695653]
[1768844575114,0.9231554,3219.9,3218.7,1.42695653]
[1768844575312,2.21092334,3219.8,3218.7,0.13918859]
[1768844575611,1.28776794,3219.8,3218.7,0.13918859]
[1768844576014,1.28776794,3219.8,3218.4,0.15544]
[1768844576613,1.28776794,3219.8,3218.4,0.29462859]
[1768844580917,0.1359652,3220.1,3218.4,0.29462859]
[1768844581119,1.28776794,3219.8,3218.4,0.29462859]
[1768844583019,1.28776794,3219.8,3218.5,1.42695653]
[1768844583413,0.1359652,3220.1,3218.5,1.42695653]
[1768844583614,1.28776794,3219.9,3218.5,1.42695653]
[1768844583917,0.92363769,3219.8,3218.5,1.42695653]
[1768844584417,0.92363769,3219.8,3218.6,1.28776794]
[1768844585021,0.92363769,3219.8,3218.8,1.42695653]
[1768844585211,0.92404012,3219.7,3218.8,1.42695653]
[1768844585414,1.28776794,3220.1,3218.8,1.42695653]
[1768844585616,0.92406541,3220.0,3218.8,1.42695653]
[1768844585919,0.92406541,3219.9,3218.9,0.13918859]
[1768844586224,0.92406541,3219.8,3218.9,0.13918859]
[1768844586418,0.92406541,3219.7,3218.9,0.13918859]
[1768844586617,1.28776794,3220.1,3218.9,0.13918859]
[1768844586818,0.92435611,3220.0,3218.9,0.13918859]
[1768844587115,0.92435611,3219.9,3218.9,0.13918859]
[1768844587317,0.92435611,3219.8,3218.9,0.13918859]
[1768844587515,0.92435611,3219.7,3218.9,0.13918859]
[1768844587718,1.28776794,3220.1,3218.9,0.13918859]
[1768844587916,0.92474249,3220.0,3218.9,0.13918859]
[1768844588117,0.92474249,3219.9,3218.9,0.13918859]
[1768844588314,0.92474249,3219.8,3219.2,1.28776794]
[1768844588523,1.6718509,3220.3,3219.2,1.28776794]
[1768844588717,1.26247583,3220.2,3219.0,1.42695653]
[1768844588924,0.92496722,3220.1,3219.0,1.42695653]
[1768844589116,0.92496722,3220.0,3219.0,1.42695653]
[1768844589315,0.92496722,3219.9,3219.1,0.13918859]
[1768844589623,1.28776794,3220.3,3219.1,0.13918859]
[1768844589823,0.92508412,3220.2,3219.1,0.13918859]
[1768844590017,0.92508412,3220.1,3219.1,0.13918859]
[1768844590226,0.92508412,3220.0,3219.1,0.13918859]
[1768844590418,0.92508412,3219.9,3219.1,0.13918859]
[1768844590622,1.28776794,3220.3,3219.1,0.13918859]
[1768844590919,1.26276713,3220.2,3219.1,0.13918859]
[1768844591119,0.92518774,3220.1,3219.1,0.13918859]
[1768844591419,0.92518774,3220.0,3219.1,0.13918859]
[1768844591625,1.28776794,3220.3,3219.1,0.13918859]
[1768844591921,0.92519861,3220.2,3219.1,0.13918859]
[1768844592124,0.92519861,3220.1,3219.1,0.13918859]
[1768844592326,0.92519861,3220.0,3219.1,0.13918859]
[1768844592623,1.28776794,3220.3,3219.1,0.13918859]
[1768844592824,0.92514331,3220.2,3219.1,0.13918859]
[1768844593022,0.92514331,3220.1,3219.1,0.13918859]
[1768844593317,0.92514331,3220.0,3219.1,0.13918859]
[1768844593523,1.28776794,3220.3,3219.1,0.13918859]
[1768844593721,0.92509488,3220.2,3219.1,0.13918859]
[1768844593920,0.92509488,3220.1,3219.1,0.13918859]
[1768844594121,0.92509488,3220.0,3219.1,0.13918859]
[1768844594320,1.28776794,3220.3,3219.1,0.13918859]
[1768844594514,0.92466748,3220.2,3219.1,0.13918859]
[1768844594722,1.28776794,3219.7,3218.9,0.15541]
[1768844594923,1.28776794,3219.9,3218.9,0.15541]
[1768844596531,0.1359652,3220.3,3218.9,0.15541]
[1768844596730,1.28776794,3220.0,3218.9,0.15541]
[1768844597635,1.28776794,3219.8,3218.9,0.15541]
[1768844602639,0.1359652,3220.3,3218.9,0.15541]
[1768844602827,1.28776794,3219.9,3218.9,0.15541]
[1768844605037,0.1359652,3220.3,3218.9,0.15541]
[1768844605334,1.28776794,3219.9,3218.9,0.15541]
[1768844606138,0.1359652,3220.3,3218.9,0.15541]
[1768844606435,1.28776794,3219.9,3218.9,0.15541]
[1768844610237,0.1359652,3220.3,3218.9,0.15541]
[1768844610440,1.28776794,3220.1,3218.9,0.15541]
[1768844610639,0.9246252,3220.0,3218.9,0.15541]
[1768844612931,1.28776794,3220.1,3218.9,0.15541]
[1768844613134,0.92483944,3220.0,3218.9,0.15541]
[1768844613330,1.28776794,3220.1,3218.9,0.15541]
[1768844613535,0.92491903,3220.0,3218.9,0.15541]
[1768844613743,1.28776794,3220.1,3218.9,0.15541]
[1768844613941,0.92491893,3220.0,3218.9,0.15541]
[1768844614139,1.28776794,3220.1,3218.9,0.15541]
[1768844614341,0.92491897,3220.0,3218.9,0.15541]
[1768844614537,0.92491897,3219.9,3218.9,0.15541]
[1768844614737,1.28776794,3220.1,3218.9,0.15541]
[1768844614937,0.92501269,3220.0,3218.9,0.15541]
[1768844615143,0.92501269,3219.9,3218.9,0.15541]
[1768844615344,1.28776794,3220.1,3218.9,0.15541]
[1768844615544,0.92512191,3220.0,3218.9,0.15541]
[1768844615739,0.92512191,3219.9,3218.9,0.15541]
[1768844615947,1.28776794,3220.1,3218.9,0.15541]
[1768844616150,0.92512191,3220.0,3218.9,0.15541]
[1768844616449,0.92512191,3219.9,3218.9,0.15541]
[1768844616651,1.28776794,3220.1,3218.9,0.15541]
[1768844616843,0.9252598,3220.0,3218.9,0.15541]
[1768844617146,0.9252598,3219.9,3218.9,0.15541]
[1768844617343,1.28776794,3220.1,3218.9,0.15541]
[1768844617543,0.92544657,3220.0,3218.9,0.15541]
[1768844617846,0.92544657,3219.9,3218.9,0.15541]
[1768844618048,1.28776794,3220.1,3218.9,0.15541]
[1768844618248,0.92544657,3220.0,3218.9,0.15541]
[1768844618439,0.92544657,3219.9,3218.9,0.15541]
[1768844618640,1.28776794,3220.1,3218.9,0.15541]
[1768844618844,0.92579159,3220.0,3218.9,0.15541]
[1768844619138,0.92579159,3219.9,3218.9,0.15541]
[1768844619341,1.28776794,3220.1,3218.9,0.15541]
[1768844619544,0.92582732,3220.0,3218.9,0.15541]
[1768844619745,0.92582732,3219.9,3218.9,0.15541]
[1768844619947,1.28776794,3220.1,3218.9,0.15541]
[1768844620150,0.92583066,3220.0,3218.9,0.15541]
[1768844620348,0.92583066,3219.9,3218.9,0.15541]
[1768844620549,1.28776794,3220.1,3218.9,0.15541]
[1768844620735,0.92586662,3220.0,3218.9,0.15541]
[1768844620940,0.92586662,3219.9,3218.9,0.15541]
[1768844621148,1.28776794,3220.1,3218.9,0.15541]
[1768844621349,0.92587117,3220.0,3218.9,0.15541]
[1768844621549,0.92587117,3219.9,3218.9,0.15541]
[1768844621848,1.28776794,3220.1,3218.9,0.15541]
[1768844622051,0.9258728,3220.0,3218.9,0.15541]
[1768844622245,0.9258728,3219.9,3218.9,0.15541]
[1768844622542,1.28776794,3220.1,3218.9,0.15541]
[1768844622743,0.92587242,3220.0,3218.9,0.15541]
[1768844622941,0.92587242,3219.9,3218.9,0.15541]
[1768844623147,1.28776794,3220.1,3218.9,0.15541]
[1768844623347,0.92587242,3220.0,3218.9,0.15541]